Cogmind - Beta 17 @@@ ROGUE MODE // 2026.07.20 @ 04:09:45 Player: TheSkyeDoctor Result: Destroyed by DM-P7L(R) with Subdweller Laser Performance ------------- Evolutions (0) 0 Regions Visited (2) 400 Robots Destroyed (21) 105 Value Destroyed (363) 363 Prototype IDs (1) 20 Alien Tech Used (0) 0 Bonus (4959) 4959 TOTAL SCORE: 5847 Bonus ------- Prayed to X0-1V1 5000 Friendly Fire -41 Cogmind --------- Core Integrity 0/175 Matter 210/300 Energy 100/100 System Corruption 0% Temperature Cool (6) Movement Core (1350) Ox26 Location -10/Subcaves Parts ------- > --- POWER (1) -------- (None) > --- PROPULSION (2) --- (None) > --- UTILITY (2) ------ Huge Storage Unit > --- WEAPON (2) ------- (None) > --- INVENTORY (25) --- Light Nuclear Core Light Treads Wheel Improved Terrain Scanner Seismic Detector Peak State ------------ > --- POWER ------------ Ion Engine > --- PROPULSION ------- Light Treads Light Treads > --- UTILITY ---------- Huge Storage Unit X0-1V1's Piety Tracker > --- WEAPON ----------- Medium Laser > --- INVENTORY -------- Light Nuclear Core Light Treads Wheel Improved Terrain Scanner Seismic Detector Grenade Launcher [Rating: 19] Favorites ----------- Power Ion Engine Engine Ion Engine Propulsion Light Treads Treads Light Treads Utility Seismic Detector Device Seismic Detector Storage Small Storage Unit Weapon Medium Laser Energy Gun Medium Laser Launcher Grenade Launcher Build | -11 -10 -10 ------- Run | Yrd Mat Sub Slots Evolved . | . . . Power . | . . . Propulsion . | . . . Utility . | . . . Weapon . | . . . Parts Attached 13 | 8 4 1 Power 3 | 2 1 . Engine 3 | 2 1 . Core . | . . . Reactor . | . . . Propulsion 3 | 2 1 . Treads 3 | 2 1 . Leg . | . . . Wheel . | . . . Hover . | . . . Flight . | . . . Utility 4 | 2 2 . Device 2 | 1 1 . Storage 2 | 1 1 . Processor . | . . . Hackware . | . . . Protection . | . . . Artifact . | . . . Weapon 3 | 2 . 1 Energy Gun 2 | 2 . . Energy Cannon . | . . . Ballistic Gun . | . . . Ballistic Cannon . | . . . Launcher 1 | . . 1 Special Weapon . | . . . Impact Weapon . | . . . Slashing Weapon . | . . . Piercing Weapon . | . . . Special Melee Weapon . | . . . Unidentified Prototypes 1 | . 1 . Parts Lost 7 | . 2 5 Power 1 | . . 1 Propulsion 2 | . . 2 Utility 1 | . . 1 Weapon 3 | . 2 1 Highest Loss Streak 5 | . 1 5 To Critical Strikes . | . . . Average Backups 4 | 2 4 5 Power . | . 1 1 Propulsion 1 | . 1 2 Utility 1 | . 1 2 Weapon . | . . . Tool/Special . | . . . Unused Backups 3 | . . 3 Power 1 | . . 1 Propulsion 1 | . . 1 Utility 1 | . . 1 Weapon . | . . . Tool/Special . | . . . Average Slot Usage (%) 85 | . 89 69 Engine 14 | . 14 14 Treads 27 | . 27 26 Device 13 | . 13 11 Storage 14 | . 14 14 Energy Gun 14 | . 18 . Peak Build Rating 19 | 7 19 18 Average Rating 8 | 5 6 15 On Entrance 8 | . 7 18 Avg Prop Armor Cover (%) . | . . . Naked Turns . | . . . Heaviest Build 88 | 15 88 88 Greatest Support 40 | 40 40 40 Greatest Overweight (x) 28 | 3 2 28 Average Overweight (x) . | . . 2 Largest Inventory Capacity 25 | 8 25 25 Average Capacity 13 | 7 11 25 Most Carried 6 | 3 6 6 Average Carried 4 | 2 4 5 Final Capacity 25 | 8 25 25 Final Carried 6 | 3 6 5 Class Distribution -------------------- 100% | Mutant Dominant Class ---------------- Mutant | -10/Materials Mutant | -10/Subcaves Resources | -11 -10 -10 ----------- Run | Yrd Mat Sub Matter Collected 320 | 280 40 . Remotely . | . . . Salvage Created 554 | 142 391 21 Parts 39 | 9 29 1 Haulers Intercepted . | . . . Recyclers Shooed 1 | 1 . . Parts Field Recycled . | . . . Retrieved Matter . | . . . Parts Self-Destructed 3 | . . 3 Prevented . | . . . Parts Restored . | . . . Kills | -11 -10 -10 ------- Run | Yrd Mat Sub Combat Hostiles Destroyed 15 | . 14 1 Guns 14 | . 14 . AOE 1 | . . 1 Classes Destroyed 7 | 2 3 2 Tunneler 4 | 4 . . Recycler 1 | 1 . . Watcher 1 | . 1 . Swarmer 9 | . 9 . Grunt 5 | . 5 . Subdweller 1 | . . 1 Scientist 1 | . . 1 Best Kill Streak 3 | 3 3 1 Combat Bots Only 3 | . 3 1 Max Kills in Single Turn 1 | 1 1 1 Gunslinging . | . . . Exploded 1 | . . 1 Melee . | . . . Uniques/NPCs Destroyed . | . . . Combat | -11 -10 -10 -------- Run | Yrd Mat Sub Hostile Shots Fired 87 | . 59 28 Missed 16 | . 10 6 Hits 71 | . 49 22 Projectile 71 | . 49 22 Critical Strikes 1 | . . 1 Damage Taken 1007 | 14 484 509 Core 264 | . 108 156 Absorbed by Shields . | . . . Core Remaining (%) 100 | 100 . . Volleys Fired 56 | 8 39 9 Largest 2 | 2 2 1 Hottest 90 | 90 90 30 Shots Fired 78 | 16 53 9 Gun 69 | 16 53 . Cannon . | . . . Launcher 9 | . . 9 Special . | . . . Kinetic . | . . . Thermal 47 | 8 39 . Explosive 9 | . . 9 Electromagnetic 22 | 8 14 . Robot Hit Streak 9 | 4 9 2 Robot Miss Streak 3 | 3 2 2 Penetration Max . | . . . Secondary Targets 1 | . 1 . Max Gunslinging Chain 1 | . 1 . Shots Hit Robots 50 | 10 38 2 Core Hits 30 | 5 21 4 Critical Kills . | . . . Critical Parts Destroyed . | . . . Critical Strikes 6 | 2 4 . Burn 6 | 2 4 . Melee Attacks . | . . . Impact . | . . . Slashing . | . . . Piercing . | . . . Sneak Attacks . | . . . Combat Hostiles . | . . . Follow-up Attacks . | . . . Damage Inflicted 1052 | 162 497 393 Guns 614 | 117 497 . Cannons . | . . . Explosions 438 | 45 . 393 Melee . | . . . Ramming . | . . . Kinetic . | . . . Thermal 496 | 119 377 . Explosive 393 | . . 393 Electromagnetic 163 | 43 120 . Impact . | . . . Slashing . | . . . Piercing . | . . . Highest Corruption . | . . . Average Corruption . | . . . Corruption Purged . | . . . Corruption Blocked . | . . . Overload Shots . | . . . Overflow Damage 15 | 15 . . Projectiles . | . . . Explosions 15 | 15 . . Melee . | . . . Knockbacks . | . . . Impact . | . . . Kinetic . | . . . Secondary . | . . . Self-Inflicted Damage 84 | 15 . 69 Shots 3 | 1 . 2 Rammed . | . . . Targets Rammed . | . . . Kicked . | . . . Crushed . | . . . Highest Temperature 229 | 150 229 . Average Temperature 54 | 56 54 . Received Heat Transfer 267 | . 159 108 Siege Activations . | . . . Martial Activations . | . . . Shielding Activations . | . . . Robots Disrupted . | . . . Combat Hostiles . | . . . Robots Corrupted . | . . . Combat Hostiles . | . . . Parts Fried . | . . . Impact Corruptions . | . . . Robots Melted . | . . . Combat Hostiles . | . . . Parts Melted 6 | 1 5 . Heat Transferred 1826 | 420 1406 . Parts Sabotaged . | . . . Parts Stolen . | . . . Parts Stripped . | . . . Power Chain Reactions 1 | 1 . . Alert | -11 -10 -10 ------- Run | Yrd Mat Sub Maximum Alert Level . | . . . Low Security (%) 100 | 100 100 . Level 1 . | . . . Level 2 . | . . . Level 3 . | . . . Level 4 . | . . . Level 5 . | . . . High Security . | . . . Max Security . | . . . Peak Influence 155 | 10 155 . Initial . | . . . Average 53 | . 64 . Influence Increases 367 | 25 342 . Destroy 0b10 Robot/C 280 | . 280 . Destroy 0b10 Robot/NC 30 | 25 5 . Destroy Leader 52 | . 52 . Successful Hack 5 | . 5 . Influence Decreases 367 | 25 333 9 Entered New Map 5 | . . 5 Time Decay 342 | 25 313 4 Lost Part 20 | . 20 . Squads Dispatched 2 | . 2 . Investigation . | . . . Extermination . | . . . Reinforcement 2 | . 2 . Assault . | . . . Garrison . | . . . Intercept . | . . . Searches Triggered . | . . . Construction Impeded . | . . . Haulers Reinforced . | . . . Active Scanning Responses . | . . . Cargo Convoy Interrupts . | . . . Stealth | -11 -10 -10 --------- Run | Yrd Mat Sub Distress Signals . | . . . Communications Jammed . | . . . Distress Signals . | . . . Times Spotted 22 | . 19 3 Peak Tracking Total 3 | . 3 2 Tactical Retreats . | . . . Traps | -11 -10 -10 ------- Run | Yrd Mat Sub Traps Triggered 1 | . 1 . Indirectly . | . . . Trap Hack Attempts . | . . . Triggered . | . . . Disarmed . | . . . Reprogrammed . | . . . Reused . | . . . Traps Extracted . | . . . Installed . | . . . Triggered . | . . . Machines | -11 -10 -10 ---------- Run | Yrd Mat Sub Machines Disabled . | . . . Max in Single Turn . | . . . Machines Repaired . | . . . Machines Dismantled . | . . . Machines Sabotaged . | . . . Overloaded Fab Kills . | . . . Hacking | -11 -10 -10 --------- Run | Yrd Mat Sub Machines Accessed 1 | . 1 . Terminals 1 | . 1 . Fabricators . | . . . Repair Stations . | . . . Recycling Units . | . . . Scanalyzers . | . . . Garrison Access . | . . . Total Hacks 2 | . 2 . Successful 1 | . 1 . Failed 1 | . 1 . Catastrophic . | . . . Database Lockouts . | . . . Manual 1 | . 1 . Terminals 2 | . 2 . Fabricators . | . . . Repair Stations . | . . . Recycling Units . | . . . Scanalyzers . | . . . Garrison Access . | . . . Terminal Hacks 1 | . 1 . Zone Layout 1 | . 1 . Fabricator Hacks . | . . . Repair Station Hacks . | . . . Recycling Unit Hacks . | . . . Scanalyzer . | . . . Garrison Access Hacks . | . . . Unauthorized Hacks . | . . . Terminals . | . . . Fabricators . | . . . Repair Stations . | . . . Recycling Units . | . . . Scanalyzers . | . . . Garrison Access . | . . . Data Cores Recovered . | . . . Used . | . . . Hacking Detections . | . . . Full Trace Events . | . . . Feedback Events . | . . . Feedback Blocked . | . . . Robot Schematics Acquired . | . . . Robots Built . | . . . Authchips . | . . . Time . | . . . Total Robot Build Rating . | . . . Part Schematics Acquired . | . . . Parts Built . | . . . Authchips . | . . . Time . | . . . Total Part Build Rating . | . . . Part Studies Acquired . | . . . Parts Repaired . | . . . Time . | . . . Parts Recycled . | . . . Recycled Matter . | . . . Retrieved Matter . | . . . Retrieved Components . | . . . Parts Scanalyzed . | . . . Part Schematics Acquired . | . . . Parts Damaged . | . . . Bothacking | -11 -10 -10 ------------ Run | Yrd Mat Sub Used RIF Installer . | . . . Robots Hacked . | . . . Non-combat . | . . . Combat . | . . . Robot Hacks Applied . | . . . Relay Couplers Released . | . . . Fabnet Peak Effective % . | . . . Robots Rewired . | . . . Allies Hacked . | . . . Hacks Repelled . | . . . Allies | -11 -10 -10 -------- Run | Yrd Mat Sub Total Allies . | . . . Largest Group . | . . . Highest-Rated Group . | . . . Highest-Rated Ally . | . . . Total Orders . | . . . Ally Attacks . | . . . Total Damage . | . . . Kills . | . . . Allies Corrupted . | . . . Allies Melted . | . . . X0-1V1 Amusement Gains 100 | . 20 80 Good Acts 1 | . . 1 Intel | -11 -10 -10 ------- Run | Yrd Mat Sub Active Infowar (turns) 1008 | 102 906 . Seismic 1008 | 102 906 . Robot Analysis Total . | . . . Derelict Logs Recovered . | . . . Drone Launches . | . . . Drone Recoveries . | . . . Exploration | -11 -10 -10 ------------- Run | Yrd Mat Sub Turns Passed 1386 | 211 947 228 Spaces Moved 543 | 107 373 63 Core 13 | 12 . 1 Treads 530 | 95 373 62 Legs . | . . . Wheels . | . . . Hover . | . . . Flight . | . . . Fastest Speed 50 | 50 160 320 Average Speed 197 | 157 184 343 Slowest Speed 1450 | 200 320 1450 Overloaded Moves . | . . . Propulsion Burnouts . | . . . Robots Hopped . | . . . Potential Cave-ins . | . . . Cave-ins Triggered . | . . . Exploration Rate (%) 22 | 4 54 9 Regions Visited 2 Branch Regions 1 Pre-discovered Areas . | . . . Known Exits Taken . | . . . Unknown Exits Taken 2 | 1 1 . Scrap Searched . | . . . Spaces Dug . | . . . Terrain Destroyed 36 | 8 . 28 Melee . | . . . Projectile . | . . . AOE 36 | 8 . 28 Terrain Rammed . | . . . Walls Destroyed . | . . . Machines Disabled . | . . . Actions | -11 -10 -10 --------- Run | Yrd Mat Sub Total 783 | 130 578 75 Wait 162 | 6 154 2 Move 541 | 106 372 63 Hop . | . . . Pick Up 6 | 2 4 . Fast Attach 9 | 7 2 . Attach 1 | . . 1 Detach . | . . . Swap 5 | 1 4 . Drop 3 | . 3 . Fire 56 | 8 39 9 Melee . | . . . Ram . | . . . Kick . | . . . Crush . | . . . Escape Stasis . | . . . Rewire . | . . . Trap . | . . . Miscellaneous . | . . . Route ------- -11/Scrapyard -10/Materials (discovered 4 exits: [*Mat x2] / [*Min] / [*Sub]) -10/Subcaves History --------- Turn | Location | Event 42 | -11/Scrapyard | Discovered new exit (range 15) 212 | -11/Scrapyard | Entered Materials 308 | -10/Materials | Build established: Mutant 563 | -10/Materials | Discovered new exit (range 6) 801 | -10/Materials | Discovered new exit (range 16) 1067 | -10/Materials | Discovered new exit (range 7) 1106 | -10/Materials | Discovered new exit (range 7) 1125 | -10/Materials | Prayed at D.C.S.S. Altar Unit 1159 | -10/Materials | Entered Subcaves 1160 | -10/Subcaves | Approached by a straggling Scientist 1166 | -10/Subcaves | Heat dissipation permanently improved by X0-1V1 (+15; -75 max core) 1366 | -10/Subcaves | Core integrity fell below 50% 1370 | -10/Subcaves | Ambushed by Subdweller buried in earth 1382 | -10/Subcaves | Core integrity fell below 20% 1387 | -10/Subcaves | Destroyed by DM-P7L(R) with Subdweller Laser Last Messages --------------- 01166_ X0-1V1: "Any self-respecting god will have their pound of flesh." (permanent -75 core integrity, +15 heat dissipation) HV-76E(c): "I think it's somewhere southeast of here" 01344_ X0-1V1's Piety Tracker destroyed. 01344_ X0-1V1 is mildly amused. 01354_ HV-76E(c) destroyed. 01355_ Subatomizers dissect the Lgt. Ion Engine. 01362_ NR-PNZ(R) destroyed. X0-1V1's Piety Tracker suddenly appears amidst shimmering waves of color. 01370_ Subatomizers dissect the Lgt. Ion Engine. 01371_ DM-P7L(R): "THANKSYOU!" 01371_ Lgt. Treads destroyed. 01379_ Grenade Launcher destroyed. 01379_ X0-1V1 is amused. 01381_ Subatomizers dissect the Lgt. Ion Engine. 01383_ Ion Engine destroyed. 01387_ X0-1V1 guffaws! Map ----- +----------------------------------------------------+ | ?????????????????????????????????????????????????? | | ?????????????????????????????????????????????????? | | ??????????####??#####???####?????????????????????? | | ?????????## ##?# ##??# #?????????????????????? | | ?????????# ### #?## #????????? ?????????? | | ?????????# ### #???????? #?????????? | | ????????## ## #??????? #?????????? | | ????????# #???????? ##????????? | | ???????## #??????? ##???????? | | ??????## ##?????# ???????? | | ?????## ## #????# ???????? | | ??#### ### ### #??## ? ??????? | | ?## ## ##?# ### # ??????? | | ## ######??## #??????? | | ## #????????# #???????? | | ####### ##????????## ## ## ???????? | | #??????##??????????## #?????????????????? | | ##???????????????????#### ##?????????????????? | | #??????????#???????????# ##??????????????????? | | #?????????# ??????????# #??????????????????? | | ????????? ##??????## ##??????????????????? | | ????????# #?????# #???????????????????? | | ???????? ##???# ##??????????????????? | | ??????? ?## #??????????????????? | | # ??????? ## ##??????????????????? | | ?# ???????# @ ##???????????????????? | | ?? ???????# *%##????????????????????? | | ?? ???????# #### ##???????????????????? | | ?? ??????? ?????# #???????????????????? | | ??##?????????????????# R #??????????????????? | | ?????????????????????### ##??????????????????? | | ??????????????????????? #??????????????????? | | ??????????????????????# R #??????????????????? | | ??????????????????????# #?????????????????? | | ?????????????????????? #????????????????? | | ?????????????????????? ???????????????? | | ?????????????????????# #??????????????? | | ?????????????????????## #??????????????? | | ??????????????????????## #??????????????? | | ???????????????????????# ##??????????????? | | ??????????????????????? # ##???????????????? | | ??????????????????????? ##????????????????? | | ??????????????????????? ???????????????????? | | ??????????????????????? ## ?????????????????????? | | ?????????????????????????????????????????????????? | | ?????????????????????????????????????????????????? | | ?????????????????????????????????????????????????? | | ?????????????????????????????????????????????????? | | ?????????????????????????????????????????????????? | | ?????????????????????????????????????????????????? | +----------------------------------------------------+ Best States ------------- Heat Dissipation 40 Energy Generation 10 Energy Capacity 250 Matter Stores 300 Matter Capacity 300 Sight Range 16 Terrain Scan Density 10 Evasion (%) 40 Recoil Reduction 2 Item Schematics ----------------- None Robot Schematics ------------------ None Fabricated ------------ Nothing Repaired ---------- Nothing Studied --------- None Alien Tech Used ----------------- None Achievements -------------- None Challenges ------------ None Game ------ Seed ServoIonExtrapolator Manual? 0 Play Time 00:06:56 Cumulative 132.6 hours Start 2026.07.20 @ 04:03:45 End 2026.07.20 @ 04:09:45 Sessions 1 Manual Loads 0 Difficulty Rogue Special Mode None Game No. 278 Rogue 278 Adventurer 0 Explorer 0 Win Type - Total 1 Types 1/0/0/0/0/0/0/0/0/0 Lore% 54 Gallery% 54 Achievement% 43 Wizard Run 0 Options --------- Layout 2 ASCII 0 Keyboard 1 Movement Arrows Keybinds 0 Fullscreen 1 Font 24/Smallcaps Map View 50x44 Zoom Use 0% Tactical HUD 1 Map Filters NONE Filters NONE Steam 1 RUN: 198816b5-a3cd-442c-bb04-587cc8b6963b